bitfinex/quotes_BTCUSD_20230110
["timestamp","ask_amount","ask_price","bid_price","bid_amount"]
[1673362709026,0.02228201,17290.0,17289.0,2.73777752]
[1673362710002,0.02228201,17290.0,17289.0,2.93777752]
[1673362710341,0.01357646,17293.0,17290.0,0.37771799]
[1673362710520,0.01357646,17293.0,17291.0,1.2085]
[1673362710785,0.01357646,17293.0,17292.0,0.5238]
[1673362711030,0.01357646,17293.0,17292.0,2.28167608]
[1673362711309,0.01357646,17293.0,17292.0,1.98167608]
[1673362711553,0.01357646,17293.0,17292.0,2.28167608]
[1673362711800,0.01557646,17293.0,17292.0,2.28167608]
[1673362712053,0.01357646,17293.0,17292.0,2.28167608]
[1673362712345,0.01557646,17293.0,17292.0,2.40967608]
[1673362712599,0.01557646,17293.0,17292.0,1.85708306]
[1673362712907,0.01357646,17293.0,17292.0,2.27866961]
[1673362713159,0.01357646,17293.0,17292.0,1.940104]
[1673362713430,0.01461242,17295.0,17293.0,0.74875958]
[1673362713708,0.01461242,17295.0,17294.0,2.74694333]
[1673362713969,0.6752787,17295.0,17294.0,0.586735]
[1673362714238,0.58553827,17294.0,17293.0,0.578258]
[1673362714495,0.58553827,17294.0,17293.0,0.586758]
[1673362715006,0.01461242,17295.0,17293.0,0.586758]
[1673362715271,0.01461242,17295.0,17293.0,1.294026]
[1673362715272,0.002,17294.0,17293.0,1.294026]
[1673362715795,0.01461242,17295.0,17293.0,1.475926]
[1673362715799,0.01461242,17295.0,17294.0,0.60634579]
[1673362716062,0.01461242,17295.0,17294.0,2.18221579]
[1673362716325,0.01461242,17295.0,17294.0,2.29401579]
[1673362716591,1.6766765,17298.0,17297.0,0.10514854]
[1673362716899,0.2674765,17298.0,17297.0,0.45472643]
[1673362717104,0.2674765,17298.0,17297.0,0.21704854]
[1673362717377,0.95810211,17298.0,17297.0,0.10514854]
[1673362718148,0.97110211,17298.0,17297.0,0.68328254]
[1673362718645,0.2804765,17298.0,17297.0,0.68328254]
[1673362720393,0.2804765,17298.0,17297.0,2.07871379]
[1673362721157,0.2804765,17298.0,17297.0,1.96751379]
[1673362722168,0.2804765,17298.0,17297.0,1.38937979]
[1673362722696,0.2804765,17298.0,17297.0,0.68328254]
[1673362722949,0.2804765,17298.0,17297.0,0.10514854]
[1673362722950,0.79389586,17298.0,17297.0,0.10514854]
[1673362723242,1.15494786,17298.0,17297.0,0.10514854]
[1673362724195,1.35494786,17298.0,17297.0,0.10514854]
[1673362725475,0.79389586,17298.0,17297.0,0.10514854]
[1673362726504,0.2804765,17298.0,17297.0,0.34282643]
[1673362726754,0.2804765,17298.0,17297.0,0.68328254]
[1673362727259,0.2804765,17298.0,17297.0,1.31457493]
[1673362727527,0.2674765,17298.0,17297.0,1.89270893]
[1673362727770,0.2684765,17298.0,17297.0,1.94870893]
[1673362728019,0.2684765,17298.0,17297.0,1.31741654]
[1673362728787,0.2684765,17298.0,17297.0,1.31855669]
[1673362729041,0.82165292,17298.0,17297.0,0.16114854]
[1673362729291,1.29350492,17298.0,17297.0,0.16114854]
[1673362730102,0.8519285,17298.0,17297.0,0.16114854]
[1673362730355,2.33678007,17298.0,17297.0,0.16114854]
[1673362730601,2.39816213,17298.0,17297.0,0.10514854]
[1673362730880,3.73026026,17298.0,17297.0,0.10514854]
[1673362731139,0.02453136,17296.0,17294.0,0.00096966]
[1673362731408,0.472452,17295.0,17294.0,0.00096966]
[1673362731660,0.472452,17295.0,17293.0,0.00015]
[1673362731911,0.472952,17294.0,17293.0,0.00015]
[1673362732172,0.672952,17294.0,17291.0,0.69376622]
[1673362732421,0.3119,17294.0,17291.0,0.69376622]
[1673362733464,0.3119,17294.0,17291.0,0.00679365]
[1673362733710,0.2238,17292.0,17291.0,0.00679365]
[1673362733989,0.584852,17292.0,17291.0,0.00584053]
[1673362734216,0.672952,17292.0,17291.0,0.00584053]
[1673362734489,1.21676847,17292.0,17291.0,0.00584053]
[1673362734767,1.22676847,17292.0,17291.0,0.08784053]
[1673362735024,1.80507047,17292.0,17291.0,0.08784053]
[1673362735288,2.062956,17292.0,17291.0,0.08784053]
[1673362735570,3.14672712,17292.0,17291.0,0.08784053]
[1673362735816,2.67035344,17292.0,17291.0,0.08784053]
[1673362736618,2.67035344,17292.0,17291.0,0.00584053]
[1673362736872,2.66035344,17292.0,17291.0,0.00584053]
[1673362737131,1.941456,17292.0,17291.0,0.00584053]
[1673362737398,2.11419804,17292.0,17291.0,0.00584053]
[1673362737668,2.70247172,17292.0,17291.0,0.00584053]
[1673362737931,2.81047172,17292.0,17291.0,0.01284053]
[1673362738203,4.82065364,17292.0,17291.0,0.01284053]
[1673362738461,4.56154058,17292.0,17291.0,0.01284053]
[1673362738722,3.96353245,17292.0,17291.0,0.01284053]
[1673362738974,4.81815031,17292.0,17291.0,0.01284053]
[1673362739245,5.16737885,17292.0,17291.0,0.01284053]
[1673362739510,4.82082516,17292.0,17291.0,0.01284053]
[1673362739763,4.99452399,17292.0,17291.0,0.01284053]
[1673362740279,5.1673779,17292.0,17291.0,0.01284053]
[1673362740564,5.29298397,17292.0,17291.0,0.01284053]
[1673362740821,5.46706423,17292.0,17291.0,0.01284053]
[1673362741079,6.54080173,17292.0,17291.0,0.01284053]
[1673362741390,6.54080173,17292.0,17285.0,0.00593954]
[1673362741391,6.10760841,17292.0,17285.0,0.00593954]
[1673362741649,0.17278066,17289.0,17287.0,0.00015]
[1673362741925,2.90603068,17288.0,17287.0,0.00015]
[1673362742443,3.07881134,17288.0,17287.0,0.00015]
[1673362742741,3.93193,17288.0,17287.0,0.00015]
[1673362743003,3.93193,17288.0,17285.0,0.00593954]
[1673362743004,6.27994788,17288.0,17285.0,0.00593954]
[1673362743261,0.50698857,17286.0,17285.0,0.24361743]
[1673362743517,0.472952,17286.0,17285.0,0.24361743]
[1673362743769,0.361052,17286.0,17285.0,0.00593954]
[1673362744078,0.361052,17286.0,17285.0,0.54126563]
[1673362744583,0.401052,17286.0,17285.0,0.54126563]
[1673362744859,0.361052,17286.0,17285.0,0.00593954]
[1673362745134,0.04,17286.0,17285.0,0.00593954]
[1673362748091,0.04,17286.0,17285.0,0.57606306]
[1673362748348,0.04,17286.0,17285.0,0.57621031]
[1673362748613,0.04,17286.0,17285.0,1.15474631]
[1673362749959,0.04,17286.0,17285.0,1.15459906]
[1673362750723,0.04,17286.0,17285.0,1.15474631]
[1673362750993,0.04,17286.0,17285.0,1.15459906]
[1673362751841,0.04,17286.0,17285.0,1.15586736]
[1673362752358,0.04,17286.0,17285.0,0.57733136]
[1673362752605,0.04,17286.0,17285.0,1.15459906]
[1673362752869,0.04,17286.0,17285.0,0.57606306]
[1673362753135,0.04,17286.0,17285.0,0.57733136]
[1673362753385,0.04,17286.0,17285.0,1.15459906]
[1673362755206,0.04,17286.0,17285.0,1.15586736]
[1673362756041,0.04,17286.0,17285.0,2.39882595]
[1673362756231,0.04,17286.0,17285.0,3.76964806]
[1673362756767,0.64974751,17290.0,17286.0,0.23171141]
[1673362757024,0.84974751,17290.0,17287.0,1.50650189]
[1673362757314,0.6823856,17289.0,17288.0,0.00126808]
[1673362757549,0.6823856,17289.0,17288.0,0.578435]
[1673362758306,0.00605306,17290.0,17288.0,0.578435]
[1673362758559,0.00605306,17290.0,17288.0,1.39454789]
[1673362758813,0.00605306,17290.0,17288.0,1.66605746]
[1673362758814,0.52792835,17290.0,17288.0,1.66605746]
[1673362759947,0.02005306,17290.0,17288.0,1.71305746]
[1673362760409,0.02005306,17290.0,17289.0,0.13983339]
[1673362760635,0.02005306,17290.0,17289.0,1.29663739]
[1673362760898,0.02005306,17290.0,17289.0,1.163654]
[1673362761384,0.02005306,17290.0,17289.0,0.578402]
[1673362761635,0.02005306,17290.0,17288.0,1.13462246]
[1673362761636,0.6369053,17290.0,17288.0,1.13462246]
[1673362761909,0.6229053,17290.0,17288.0,1.08768585]
[1673362762166,0.6339053,17290.0,17289.0,0.047]
[1673362762672,0.6229053,17290.0,17288.0,1.08768585]
[1673362762944,0.6369053,17290.0,17288.0,1.13468585]
[1673362763454,0.54156435,17289.0,17287.0,1.2958622]
[1673362764251,0.54156435,17289.0,17288.0,0.047]
[1673362765274,0.54156435,17289.0,17287.0,1.3428622]
[1673362765275,0.55556435,17289.0,17287.0,1.3428622]
[1673362765549,0.361052,17288.0,17286.0,0.61116791]
[1673362765781,0.361052,17288.0,17286.0,0.72959003]
[1673362765782,0.98037971,17287.0,17286.0,0.72959003]
[1673362766032,0.61932771,17287.0,17286.0,0.03269191]
[1673362766281,0.61932771,17287.0,17286.0,0.03171141]
[1673362766778,0.63232771,17287.0,17286.0,0.07871141]
[1673362769811,0.63232771,17287.0,17286.0,0.2799836]
[1673362769812,0.013,17287.0,17286.0,0.2799836]
[1673362770065,0.013,17287.0,17286.0,1.65030905]
[1673362770586,0.013,17287.0,17286.0,2.41020264]
[1673362770836,0.013,17287.0,17286.0,3.71607413]
[1673362771099,0.013,17287.0,17286.0,4.88896572]
[1673362771400,0.013,17287.0,17286.0,4.8891558]
[1673362771614,0.013,17287.0,17286.0,4.64056133]
[1673362771881,0.013,17287.0,17286.0,4.20833453]
[1673362772123,0.013,17287.0,17286.0,4.38103386]
[1673362772379,0.013,17287.0,17286.0,5.04069334]
[1673362772673,0.013,17287.0,17286.0,4.03525068]
[1673362773417,0.013,17287.0,17286.0,4.2037214]
[1673362773673,0.013,17287.0,17286.0,4.0357679]
[1673362774202,0.013,17287.0,17286.0,4.9784032]
[1673362774947,0.013,17287.0,17286.0,4.6784032]
[1673362775448,0.013,17287.0,17286.0,4.67713101]
[1673362775713,0.013,17287.0,17286.0,4.39315482]
[1673362775950,0.013,17287.0,17286.0,3.19309121]
[1673362776221,0.013,17287.0,17286.0,3.02005889]
[1673362776485,0.008,17287.0,17286.0,2.90875889]
[1673362776739,0.008,17287.0,17286.0,2.9088225]
[1673362777248,0.008,17287.0,17286.0,3.49375482]
[1673362777543,0.008,17287.0,17286.0,3.19375482]
[1673362777822,0.008,17287.0,17286.0,3.66679462]
[1673362779653,0.008,17287.0,17286.0,4.18123482]
[1673362779909,0.008,17287.0,17286.0,3.83505932]
[1673362780154,0.014,17289.0,17287.0,0.77852562]
[1673362780404,0.014,17289.0,17288.0,1.33847103]
[1673362780664,0.014,17289.0,17288.0,1.16537]
[1673362781424,0.64768498,17290.0,17288.0,1.16537]
[1673362781716,0.011,17289.0,17288.0,1.22437]
[1673362783184,0.64768498,17290.0,17288.0,1.33847103]
[1673362783185,0.00605306,17290.0,17288.0,1.33847103]
[1673362783448,0.00605306,17290.0,17289.0,0.4119]
[1673362783449,0.01705306,17290.0,17289.0,0.4119]
[1673362783697,0.00605306,17290.0,17289.0,3.49528198]
[1673362783954,0.00605306,17290.0,17289.0,4.84148403]
[1673362784200,0.00605306,17290.0,17289.0,4.49525212]
[1673362784693,0.01005306,17290.0,17289.0,4.52125212]
[1673362785207,0.01005306,17290.0,17289.0,3.88738615]
[1673362785460,0.01005306,17290.0,17289.0,4.21902901]
[1673362785718,0.01005306,17290.0,17289.0,4.51902901]
[1673362785987,0.01005306,17290.0,17289.0,4.21902901]
[1673362786244,0.00605306,17290.0,17289.0,3.86138615]
[1673362786513,0.01805306,17290.0,17289.0,3.36073461]
[1673362786783,0.00605306,17290.0,17289.0,3.30173461]
[1673362787045,0.01005306,17290.0,17289.0,3.32773461]
[1673362787330,0.01005306,17290.0,17289.0,3.60173461]
[1673362787331,0.00605306,17290.0,17289.0,3.60173461]
[1673362787583,0.01805306,17290.0,17289.0,3.66073461]
[1673362787831,0.01805306,17290.0,17289.0,4.5516947]
[1673362788177,0.01805306,17290.0,17289.0,3.90036434]
[1673362788430,0.01805306,17290.0,17289.0,3.89621846]
[1673362788679,0.01805306,17290.0,17289.0,3.90025895]
[1673362788961,0.01805306,17290.0,17289.0,3.89153056]
[1673362790011,0.01805306,17290.0,17289.0,4.52274272]
[1673362790269,0.01805306,17290.0,17289.0,3.33187902]
[1673362790525,0.01805306,17290.0,17289.0,3.63187902]
[1673362790834,0.01805306,17290.0,17289.0,2.13187902]
[1673362791358,0.01805306,17290.0,17289.0,1.95868687]
[1673362791885,0.01805306,17290.0,17289.0,1.84678687]
[1673362792901,0.72486928,17290.0,17289.0,1.84678687]
[1673362793143,0.72486928,17290.0,17289.0,0.0675]
[1673362794897,0.72486928,17290.0,17288.0,1.66250453]
[1673362795911,0.71286928,17290.0,17288.0,1.66250453]
[1673362796163,0.72686928,17290.0,17288.0,1.66750453]
[1673362796941,0.71286928,17290.0,17289.0,0.57202416]
[1673362797197,0.72686928,17290.0,17289.0,0.57202416]
[1673362797425,0.71286928,17290.0,17289.0,0.57202416]
[1673362797680,0.72786928,17290.0,17289.0,0.57202416]
[1673362798712,0.72886928,17290.0,17289.0,0.57702416]
[1673362799725,0.72886928,17290.0,17289.0,0.005]
[1673362800504,0.72886928,17290.0,17289.0,1.361804]
[1673362800505,0.02205306,17290.0,17289.0,1.361804]
[1673362800761,0.02205306,17290.0,17289.0,4.27202185]
[1673362801072,0.02205306,17290.0,17289.0,3.13694286]
[1673362801265,0.02205306,17290.0,17289.0,1.72781059]
[1673362801520,0.02205306,17290.0,17289.0,1.28660553]
[1673362801756,0.7194526,17290.0,17289.0,1.28660553]
[1673362802012,0.7194526,17290.0,17289.0,0.005]
[1673362802515,0.01933306,17290.0,17289.0,0.005]
[1673362802785,0.01933306,17290.0,17289.0,0.583402]
[1673362803574,0.21933306,17290.0,17289.0,0.581259]
[1673362804062,0.9106048,17290.0,17289.0,0.581259]
[1673362804314,0.9106048,17290.0,17289.0,0.002857]
[1673362804897,1.2716568,17290.0,17289.0,0.002857]
[1673362806513,0.9106048,17290.0,17289.0,0.002857]
[1673362806765,0.7106048,17290.0,17289.0,0.002857]
[1673362807574,0.01933306,17290.0,17289.0,0.70372486]
[1673362807817,0.01933306,17290.0,17289.0,1.71483192]
[1673362808086,0.01933306,17290.0,17289.0,2.03358238]
[1673362809390,0.01933306,17290.0,17289.0,2.29323392]
[1673362809875,0.01933306,17290.0,17289.0,2.9400058]
[1673362810382,0.01933306,17290.0,17289.0,2.9485058]
[1673362811385,0.01933306,17290.0,17289.0,2.04208238]
[1673362811649,0.62457841,17290.0,17289.0,0.002857]
[1673362811918,0.98563041,17290.0,17289.0,0.002857]
[1673362812165,0.62457841,17290.0,17289.0,0.002857]
[1673362813425,0.98563041,17290.0,17289.0,0.002857]
[1673362813918,2.14272596,17290.0,17289.0,0.002857]
[1673362814417,2.31551453,17290.0,17289.0,0.002857]
[1673362816161,1.78167396,17290.0,17289.0,0.002857]
[1673362816401,0.98563041,17290.0,17289.0,0.002857]
[1673362816645,0.62457841,17290.0,17289.0,0.002857]
[1673362817153,0.98563041,17290.0,17289.0,0.002857]
[1673362817408,2.34273414,17290.0,17289.0,0.002857]
[1673362818606,2.51552271,17290.0,17289.0,0.002857]
[1673362820098,2.51552271,17290.0,17289.0,0.00292404]
[1673362820099,1.98168214,17290.0,17289.0,0.00292404]
[1673362820380,2.34273414,17290.0,17289.0,0.002857]
[1673362821369,0.98563041,17290.0,17289.0,0.002857]
[1673362821635,0.62457841,17290.0,17289.0,0.002857]
[1673362823385,1.78168627,17290.0,17289.0,0.002857]
[1673362823626,0.62457841,17290.0,17289.0,0.002857]
[1673362824098,2.31553078,17290.0,17289.0,0.002857]
[1673362824349,2.79771364,17290.0,17289.0,0.002857]
[1673362824599,3.54887022,17290.0,17289.0,0.002857]
[1673362824845,3.71875946,17290.0,17289.0,0.002857]
[1673362825101,3.54553716,17290.0,17289.0,0.002857]
[1673362825599,3.71830595,17290.0,17289.0,0.002857]
[1673362825850,4.44873297,17290.0,17289.0,0.002857]
[1673362826104,3.90007969,17290.0,17286.0,0.57059604]
[1673362826355,0.1119,17288.0,17286.0,0.57059604]
[1673362826628,0.1119,17288.0,17285.0,0.00690723]
[1673362826629,0.361052,17287.0,17285.0,0.00690723]
[1673362826870,0.361052,17286.0,17285.0,0.00690723]
[1673362827122,0.561052,17286.0,17285.0,0.00690723]
[1673362827358,0.561052,17286.0,17285.0,0.65269199]
[1673362827359,0.2,17286.0,17285.0,0.65269199]
[1673362827600,0.3114,17286.0,17285.0,0.65269199]
[1673362827845,0.95185089,17286.0,17285.0,0.00593954]
[1673362828090,0.95185089,17286.0,17285.0,0.00787099]
[1673362828091,1.42480289,17286.0,17285.0,0.00787099]
[1673362828341,3.53586256,17286.0,17285.0,0.00787099]
[1673362828593,3.10274954,17286.0,17285.0,0.00787099]
[1673362828830,3.53586256,17286.0,17285.0,0.00787099]
[1673362829181,3.42446256,17286.0,17285.0,0.00587099]
[1673362829430,4.01696456,17286.0,17285.0,0.00587099]
[1673362829680,4.15196456,17286.0,17285.0,0.00587099]
[1673362830421,4.3242965,17286.0,17285.0,0.00587099]
[1673362830679,4.3242965,17286.0,17285.0,7.099e-05]
[1673362830680,5.86946929,17286.0,17285.0,7.099e-05]
[1673362830932,0.70510494,17285.0,17283.0,0.24495928]
[1673362831181,0.361052,17284.0,17283.0,0.7055263]
[1673362831705,0.70510494,17285.0,17283.0,0.70566424]
[1673362831978,0.70510494,17285.0,17283.0,0.7005263]
[1673362832223,0.361052,17284.0,17283.0,0.00228139]
[1673362832468,0.448052,17284.0,17283.0,0.00228139]
[1673362832988,0.448052,17284.0,17283.0,0.6964904]
[1673362833238,0.79210494,17285.0,17283.0,1.27523134]
[1673362833239,0.50510494,17285.0,17283.0,1.27523134]
[1673362833498,0.087,17284.0,17283.0,1.51290923]
[1673362833758,0.087,17284.0,17283.0,1.86233434]
[1673362834569,0.087,17284.0,17283.0,1.8621964]
[1673362834811,0.50510494,17285.0,17283.0,1.86251624]
[1673362835062,0.50510494,17285.0,17283.0,1.8621964]
[1673362835311,0.59210494,17285.0,17283.0,1.8621964]
[1673362835565,0.087,17284.0,17283.0,1.8621964]
[1673362835845,0.50510494,17285.0,17283.0,1.86251624]
[1673362836090,0.59210494,17285.0,17283.0,1.86251624]
[1673362836655,0.016,17284.0,17283.0,1.86451624]
[1673362836855,0.50510494,17285.0,17283.0,1.86251624]
[1673362837113,1.5579,17287.0,17283.0,1.86251624]
[1673362837413,0.6103127,17287.0,17284.0,0.89035468]
[1673362837673,1.4447,17289.0,17285.0,1.39473289]
[1673362837949,1.4447,17289.0,17286.0,0.23767789]
[1673362837950,0.57128671,17287.0,17286.0,0.23767789]
[1673362838210,0.57128671,17287.0,17285.0,1.21120398]
[1673362838495,0.58728671,17287.0,17285.0,1.21219712]
[1673362838753,0.57128671,17287.0,17285.0,1.21270271]
[1673362839034,0.2,17288.0,17285.0,1.21370271]
[1673362839497,0.2,17288.0,17286.0,0.71875708]
[1673362839498,0.014,17287.0,17286.0,0.71875708]
[1673362840024,0.03,17287.0,17286.0,0.71875708]
[1673362840540,0.03,17287.0,17286.0,1.29725908]
[1673362840806,0.80530039,17288.0,17286.0,1.29776463]
[1673362841070,0.80530039,17288.0,17286.0,1.29725908]
[1673362841071,0.82130039,17288.0,17286.0,1.29725908]
[1673362841321,0.80530039,17288.0,17286.0,1.29725908]
[1673362841574,0.011,17287.0,17286.0,1.29925908]
[1673362841842,0.011,17287.0,17286.0,1.29725908]
[1673362842091,0.011,17287.0,17286.0,1.29925908]
[1673362842348,0.14392,17287.0,17286.0,0.72075708]
[1673362842580,0.14392,17287.0,17286.0,0.62075708]
[1673362842830,0.13292,17287.0,17286.0,0.61875708]
[1673362843110,0.84621176,17287.0,17286.0,0.61875708]
[1673362843830,0.85721176,17287.0,17286.0,0.62075708]
[1673362844080,0.85721176,17287.0,17286.0,0.002]
[1673362844337,0.011,17287.0,17286.0,0.95109989]
[1673362844582,0.011,17287.0,17286.0,3.09211546]
[1673362844845,0.011,17287.0,17286.0,3.09292482]
[1673362845646,0.011,17287.0,17286.0,1.84779546]
[1673362845865,0.011,17287.0,17286.0,1.84860482]
[1673362846134,0.011,17287.0,17286.0,2.96020482]
[1673362847159,0.011,17287.0,17286.0,1.95939546]
[1673362847430,0.011,17287.0,17286.0,1.96020482]
[1673362847690,0.78917694,17287.0,17286.0,1.159004]
[1673362847942,0.78906123,17287.0,17286.0,0.580502]
[1673362848209,0.01088429,17287.0,17286.0,1.15981336]
[1673362849220,0.01088429,17287.0,17286.0,1.35981336]
[1673362849746,0.00088429,17287.0,17286.0,1.35981336]
[1673362850041,0.00088429,17287.0,17286.0,1.359004]
[1673362850795,0.00088429,17287.0,17286.0,1.35934826]
[1673362851033,0.00088429,17287.0,17286.0,1.35871661]
[1673362851293,0.12168429,17287.0,17286.0,1.15871661]
[1673362851543,0.80757411,17287.0,17286.0,0.58021461]
[1673362851793,0.68677411,17287.0,17286.0,0.58055887]
[1673362852134,0.68677411,17287.0,17286.0,0.58021461]
[1673362852297,0.68677411,17287.0,17286.0,0.00171261]
[1673362854327,1.04782611,17287.0,17286.0,0.00171261]
[1673362854837,1.24782611,17287.0,17286.0,0.00171261]
[1673362855339,2.29553177,17287.0,17286.0,0.00171261]
[1673362855591,4.31617459,17287.0,17286.0,0.00171261]
[1673362856104,2.98501648,17287.0,17283.0,0.56541205]
[1673362856430,0.561052,17286.0,17283.0,0.56541205]
[1673362856640,0.361052,17285.0,17283.0,0.56541205]
[1673362856892,0.2,17286.0,17283.0,0.56573311]
[1673362857153,0.2,17286.0,17284.0,0.55759299]
[1673362857905,0.2,17286.0,17284.0,0.55791403]
[1673362857906,0.011,17285.0,17284.0,0.55791403]
[1673362858154,0.2,17286.0,17284.0,0.55791403]
[1673362858155,0.2,17286.0,17284.0,0.55759299]
[1673362858671,0.361052,17285.0,17284.0,0.005]
[1673362858923,1.08051182,17285.0,17284.0,0.005]
[1673362859168,1.28051182,17285.0,17284.0,0.005]
[1673362859436,1.28051182,17285.0,17283.0,0.00323266]
[1673362859437,2.43938448,17285.0,17283.0,0.00323266]
[1673362859764,1.97523248,17285.0,17284.0,0.005]
[1673362859940,1.86704782,17285.0,17284.0,0.005]
[1673362860427,1.86704782,17285.0,17283.0,0.52172066]
[1673362860428,1.28051182,17285.0,17283.0,0.52172066]
[1673362860680,1.28051182,17285.0,17283.0,0.53272066]
[1673362860681,0.93045982,17285.0,17283.0,0.53272066]
[1673362860929,0.2,17284.0,17283.0,0.52172066]
[1673362861691,0.2,17284.0,17283.0,0.00228139]
[1673362861956,1.13447471,17284.0,17283.0,0.00228139]
[1673362862515,0.57342271,17284.0,17283.0,0.00228139]
[1673362862790,0.011,17284.0,17283.0,0.45095928]
[1673362863053,0.011,17284.0,17283.0,1.21467743]
[1673362863319,0.011,17284.0,17283.0,1.79364105]
[1673362863838,0.011,17284.0,17283.0,1.96669457]
[1673362864340,0.011,17284.0,17283.0,2.87172407]
[1673362864591,0.011,17284.0,17283.0,2.83147956]
[1673362864906,0.011,17284.0,17283.0,3.28741647]
[1673362865106,0.011,17284.0,17283.0,2.65825836]
[1673362865371,0.011,17284.0,17283.0,3.32419258]
[1673362865610,0.011,17284.0,17283.0,3.02419258]
[1673362866409,0.011,17284.0,17283.0,3.19741378]
[1673362866655,0.011,17284.0,17283.0,3.49741378]
[1673362866901,0.011,17284.0,17283.0,3.19741378]
[1673362867654,0.011,17284.0,17283.0,3.02418487]
[1673362867899,0.011,17284.0,17283.0,2.37880691]
[1673362868404,0.011,17284.0,17283.0,1.83492161]
[1673362868671,0.63703922,17284.0,17283.0,1.16048739]
[1673362868924,0.63703922,17284.0,17283.0,0.58188439]
[1673362869433,0.63703922,17284.0,17283.0,0.58227383]
[1673362869687,0.63703922,17284.0,17283.0,0.00328139]
[1673362870193,0.63703922,17284.0,17283.0,0.00367083]
[1673362870688,0.011,17284.0,17283.0,0.00367083]
[1673362870956,0.011,17284.0,17283.0,0.57374969]
[1673362871256,0.011,17284.0,17283.0,2.92780197]
[1673362871717,0.011,17284.0,17283.0,3.53096304]
[1673362872009,0.011,17284.0,17283.0,4.54565653]
[1673362872266,0.011,17284.0,17283.0,4.00406407]
[1673362872520,0.011,17284.0,17283.0,4.59156909]
[1673362872772,0.011,17284.0,17283.0,3.69730773]
[1673362873048,6e-05,17287.0,17284.0,0.86656178]
[1673362873311,6e-05,17287.0,17285.0,1.33118136]
[1673362873561,6e-05,17287.0,17286.0,0.2]
[1673362873838,0.71816604,17288.0,17286.0,0.778502]
[1673362874079,0.009,17287.0,17286.0,1.45458299]
[1673362874338,0.009,17287.0,17286.0,1.7954071]
[1673362875199,0.71816604,17288.0,17286.0,1.7954071]
[1673362875362,0.01,17287.0,17286.0,1.8774071]
[1673362876124,0.01,17287.0,17286.0,1.2989051]
[1673362878993,0.64267092,17287.0,17286.0,0.660502]
[1673362879212,0.64267092,17287.0,17286.0,0.082]
[1673362879757,1.79998671,17287.0,17286.0,0.082]
[1673362880013,2.33392333,17287.0,17286.0,0.082]
[1673362880267,3.29303537,17287.0,17286.0,0.082]
[1673362880521,4.43003332,17287.0,17286.0,0.082]
[1673362881822,0.2,17286.0,17284.0,0.00847865]
[1673362882082,0.2,17286.0,17284.0,0.55475867]
[1673362882083,0.361052,17285.0,17284.0,0.55475867]
[1673362882322,0.2,17286.0,17284.0,0.55475867]
[1673362882819,0.2,17286.0,17284.0,0.55875867]
[1673362882820,0.239,17286.0,17284.0,0.55875867]
[1673362883321,0.4122247,17286.0,17284.0,0.01247865]
[1673362883577,0.361052,17285.0,17284.0,0.01247865]
[1673362884095,0.67153695,17286.0,17284.0,0.01247865]
[1673362884348,1.86707271,17285.0,17284.0,0.01247865]
[1673362884630,1.07065605,17285.0,17284.0,0.01290093]
[1673362884873,0.4122247,17286.0,17284.0,0.63805544]
[1673362884874,0.2,17286.0,17284.0,0.63805544]
[1673362885133,0.039,17285.0,17284.0,0.25742882]
[1673362885388,0.039,17285.0,17284.0,1.58124643]
[1673362885916,0.68175323,17288.0,17285.0,0.58264169]
[1673362886173,0.039,17286.0,17285.0,0.89354169]
[1673362886438,0.1732247,17289.0,17285.0,1.64513719]
[1673362886707,0.8421373,17289.0,17286.0,0.2]
[1673362886960,0.1732247,17289.0,17286.0,0.778501]
[1673362887237,0.1732247,17289.0,17287.0,0.4904279]
[1673362887238,0.43253695,17289.0,17287.0,0.4904279]
[1673362887481,1.15725844,17288.0,17287.0,0.4904279]
[1673362888256,1.16725844,17288.0,17287.0,0.4904279]
[1673362888508,1.16725844,17288.0,17287.0,0.49077222]
[1673362888509,1.15725844,17288.0,17287.0,0.49077222]
[1673362888766,1.16725844,17288.0,17287.0,0.56877222]
[1673362889023,1.16725461,17288.0,17287.0,0.5684279]
[1673362889301,1.36725461,17288.0,17287.0,0.5684279]
[1673362889532,1.36725461,17288.0,17287.0,0.56877222]
[1673362890035,1.16725461,17288.0,17287.0,0.5684279]
[1673362890555,0.01,17288.0,17287.0,0.56877222]
[1673362891079,0.01,17288.0,17287.0,0.5684279]
[1673362891334,1.16723925,17288.0,17287.0,0.078]
[1673362891586,1.90151595,17288.0,17287.0,0.078]
[1673362891873,1.54046395,17288.0,17287.0,0.078]
[1673362892130,1.90151595,17288.0,17287.0,0.078]
[1673362892399,1.54046395,17288.0,17287.0,0.078]
[1673362892906,1.34046395,17288.0,17287.0,0.078]
[1673362893159,1.16723925,17288.0,17287.0,0.07841831]
[1673362893923,1.16723925,17288.0,17287.0,0.078]
[1673362894178,0.01,17288.0,17287.0,0.078]
[1673362894981,1.16726463,17288.0,17287.0,0.078]
[1673362895207,1.88571643,17288.0,17287.0,0.078]
[1673362895461,2.24676843,17288.0,17287.0,0.078]
[1673362895711,2.67860565,17288.0,17287.0,0.078]
[1673362895961,3.72627731,17288.0,17287.0,0.078]
[1673362896220,4.68625557,17288.0,17287.0,0.078]
[1673362896490,0.65369314,17287.0,17285.0,0.00099026]
[1673362896748,3.87926958,17286.0,17285.0,0.00099026]
[1673362897059,1.7099118,17286.0,17285.0,0.00041836]
[1673362897262,1.7099118,17286.0,17284.0,0.65182618]
[1673362897515,0.361052,17285.0,17284.0,1.35306154]
[1673362897767,0.19159517,17286.0,17284.0,1.35306154]
[1673362898028,0.21833151,17286.0,17285.0,0.54136984]
[1673362898294,0.01833151,17286.0,17285.0,0.54136984]
[1673362898542,0.15233151,17286.0,17285.0,0.54136984]
[1673362898808,0.01833151,17286.0,17285.0,0.65296984]
[1673362899075,0.01833151,17286.0,17285.0,1.23150584]
[1673362899076,0.02933151,17286.0,17285.0,1.23150584]
[1673362899328,0.01833151,17286.0,17285.0,1.98310434]
[1673362899582,0.02933151,17286.0,17285.0,1.98310434]
[1673362900376,0.01833151,17286.0,17285.0,2.34494129]
[1673362900636,0.01833151,17286.0,17285.0,3.48881162]
[1673362900934,0.01833151,17286.0,17285.0,2.81800378]
[1673362901105,0.01833151,17286.0,17285.0,3.53383235]
[1673362901685,0.01833151,17286.0,17285.0,3.44660601]
[1673362901942,0.03433151,17286.0,17285.0,2.81800378]
[1673362902224,0.01833151,17286.0,17285.0,3.11116261]
[1673362902459,0.03333151,17286.0,17285.0,3.11116261]
[1673362902703,0.03333151,17286.0,17285.0,3.68260954]
[1673362902949,0.03333151,17286.0,17285.0,3.11116261]